[Event "Baku Open 2024"]
[Site "Baku"]
[Date "2024.07.05"]
[Round "7.41"]
[White "Aarav Sinha"]
[Black "Allahverdiyeva, Ayan"]
[Result "0-1"]
[ECO "B90"]
[WhiteElo "2300"]
[BlackElo "2133"]
[Annotator "TA"]
[PlyCount "90"]
[EventDate "2024.06.29"]
[EventType "swiss"]
[EventCountry "AZE"]
[SourceTitle "playchess.com"]
[Source "ChessBase"]
[SourceQuality "1"]
[TimeControl "5400+30"]

{[%evp 24,89,25,29,27,20,22,0,0,-11,-1,-14,0,-22,-27,-17,0,0,-2,-9,15,-18,-6,-9,0,-42,-36,-95,-106,-118,-106,-179,-178,-203,-201,-292,-296,-284,-297,-306,-319,-324,-314,-323,-318,-348,-277,-238,-263,-701,-701,-701,-688,-675,-701,-701,-701,-685,-674,-1030,-973,-911,-758,-1333,-1330,-1315,-1207,-29999]} 1. e4 {[%emt 0:01:26]} c5 {[%emt 0:00:03]} 2. Nf3 {[%emt 0:00:37]} d6 {[%emt 0:00:05]} 3. d4 {[%emt 0:00:08]} cxd4 {[%emt 0:00:05]} 4. Nxd4 {[%emt 0:00:39]} Nf6 {[%emt 0:00:05]} 5. Nc3 {[%emt 0:00:11]} a6 {[%emt 0:00:26]} 6. Be3 {[%emt 0:00:08]} e5 {[%emt 0:02:45]} 7. Nf3 {[%emt 0:00:10]} Qc7 {[%emt 0:02:29]} 8. a4 {[%emt 0:00:35]} Be7 {[%emt 0:00:26]} 9. Be2 {[%emt 0:00:09][%cal Bf1e2,Be2f3,Bf3g2][%mdl 32]} O-O {[%emt 0:00:35]} 10. O-O {[%emt 0:00:06]} Nbd7 {[%emt 0:00:46]} 11. a5 {[%emt 0:02:15]} b6 {[%emt 0:01:20]} 12. axb6 {[%emt 0:05:18]} Nxb6 {[%emt 0:00:04]} 13. Nd2 {[%emt 0:00:51]} Bb7 {[%emt 0:03:56]} 14. Bf3 {[%emt 0:05:59]} Rfc8 {[%emt 0:09:17]} 15. g3 {[%emt 0:05:13]} a5 {[%emt 0:03:09] The position is equal.} 16. Bg2 {[%emt 0:03:25]} Bc6 {[%emt 0:06:35]} 17. Qe2 {[%emt 0:16:02]} a4 {[%emt 0:08:05]} 18. Nc4 {[%emt 0:21:04]} Nxc4 {[%emt 0:15:24]} 19. Qxc4 {[%emt 0:00:10]} Qb8 {[%emt 0:00:49][%cal Oc6e4]} 20. Qd3 {[%emt 0:01:00]} Bd7 {[%emt 0:03:01]} (20... Qxb2 $2 21. Rfb1 $18) 21. Rfb1 {[%emt 0:00:56]} Rc7 {[%emt 0:00:45]} 22. h3 {[%emt 0:07:40]} h6 {[%emt 0:05:52]} 23. g4 {[%emt 0:00:51]} Rb7 {[%emt 0:05:12]} 24. Bc1 {[%emt 0:08:01]} Bd8 {[%emt 0:08:39][%cal Be7d8,Bd8b6,Bb6d4][%mdl 32]} 25. f3 {[%emt 0:04:49]} (25. b3 $15) 25... Bb6+ $17 {[%emt 0:03:58] Black continues to play with concentration.} 26. Kh2 {[%emt 0:00:15]} Bd4 {[%emt 0:00:04][%cal Od6d5]} 27. Nd1 {[%emt 0:02:19]} (27. Kh1 $17 {was necessary.}) 27... d5 $19 {[%emt 0:04:28]} 28. c3 {[%emt 0:01:04]} Bc5 {[%emt 0:01:39]} 29. Be3 {[%emt 0:01:03]} (29. Qc2 $142) 29... dxe4 {[%emt 0:02:32]} 30. fxe4 {[%emt 0:00:15]} Bxe3 {[%emt 0:00:15]} 31. Nxe3 {[%emt 0:03:17]} Rxb2 {[%emt 0:00:07]} 32. Rxb2 {[%emt 0:00:17]} Qxb2 {[%emt 0:00:06]} 33. Rb1 {[%emt 0:00:52]} Qa2 {[%emt 0:00:42]} 34. Nd5 {[%emt 0:01:45]} Nxd5 {[%emt 0:01:52]} 35. exd5 {[%emt 0:00:04]} a3 {[%emt 0:01:33][%cal Oe5e4] Threatens to win with ...e4!} 36. c4 $2 {[%emt 0:00:26] [#]} (36. Kg1 Ba4 (36... Rc8 37. Rb7 $17) 37. Be4) 36... e4 $1 {[%emt 0:00:55][%mdl 512]} 37. Qxe4 {[%emt 0:02:39]} Re8 {[%emt 0:00:03]} 38. Qd3 {[%emt 0:00:04]} Re2 {[%emt 0:00:03]} 39. Rb8+ {[%emt 0:00:52]} Be8 {[%emt 0:00:40]} 40. Qf3 {[%emt 0:02:10]} Qd2 {[%emt 0:00:13] [#] And now ...a2 would win.} (40... Qxc4 41. Qxa3 g5 (41... Qxd5 $2 {is the wrong capture.} 42. Rxe8+ Kh7 43. Rxe2 $18) 42. Qf3 $15) 41. Rxe8+ {[%emt 0:02:46]} Rxe8 {[%emt 0:00:20]} 42. Qxa3 {[%emt 0:00:04]} Qd4 {[%emt 0:01:58]} 43. d6 {[%emt 0:03:29]} Re1 {[%emt 0:00:46]} 44. Qa8+ {[%emt 0:00:30]} Kh7 {[%emt 0:00:04]} 45. Qd5 {[%emt 0:00:35]} Qf4# {[%emt 0:00:05] Weighted Error Value: White=0.94/Black=0.11 (very precise) .  Mistake:       	White=4     	---        Inaccurate:     	White=2     	---        OK:         	White=7     	Black=17     Brilliant:      	---       	Black=1} 0-1

[Event "Baku Open 2024"]
[Site "Baku"]
[Date "2024.07.05"]
[Round "7.42"]
[White "Ivanova, Anastasia S."]
[Black "Avinash Ramesh"]
[Result "1/2-1/2"]
[ECO "B50"]
[WhiteElo "1840"]
[BlackElo "2252"]
[Annotator "RC"]
[PlyCount "133"]
[EventDate "2024.06.29"]
[EventType "swiss"]
[EventCountry "AZE"]
[SourceTitle "playchess.com"]
[Source "ChessBase"]
[SourceQuality "1"]
[TimeControl "5400+30"]

1. e4 {[%emt 0:00:57]} c5 {[%emt 0:02:32]} 2. Nf3 {[%emt 0:00:03]} d6 {[%emt 0:00:58]} 3. c3 {[%emt 0:00:06]} Nf6 {[%emt 0:00:17]} 4. Bd3 {[%emt 0:00:03]} g6 {[%emt 0:01:26]} 5. Bc2 {[%emt 0:00:16]} Bg7 {[%emt 0:00:06]} 6. O-O {[%emt 0:00:05]} O-O {[%emt 0:03:13]} 7. h3 {[%emt 0:00:46]} Nc6 {[%emt 0:01:43]} 8. d4 {[%emt 0:00:12]} cxd4 {[%emt 0:00:53]} 9. cxd4 {[%emt 0:00:03]} e5 {[%emt 0:09:03]} 10. Be3 {[%emt 0:05:28]} exd4 {[%emt 0:04:17]} 11. Nxd4 {[%emt 0:00:27]} d5 {[%emt 0:00:19]} 12. Nxc6 {[%emt 0:03:24]} bxc6 {[%emt 0:03:18]} 13. Nc3 {[%emt 0:02:15]} Re8 {[%emt 0:04:59]} 14. exd5 {[%emt 0:03:49]} Nxd5 {[%emt 0:00:24]} 15. Nxd5 {[%emt 0:02:01]} cxd5 {[%emt 0:00:06]} 16. Ba4 {[%emt 0:02:05]} Bd7 {[%emt 0:00:40]} 17. Bxd7 {[%emt 0:02:30]} Qxd7 {[%emt 0:00:06]} 18. Bd4 {[%emt 0:00:05]} Bxd4 {[%emt 0:00:50]} 19. Qxd4 {[%emt 0:00:04]} Re4 {[%emt 0:00:04]} 20. Qd3 {[%emt 0:02:04]} Rae8 {[%emt 0:00:19]} 21. Rad1 {[%emt 0:00:39]} d4 {[%emt 0:01:35]} 22. Rd2 {[%emt 0:02:03]} Qe6 {[%emt 0:01:36]} 23. b3 {[%emt 0:04:17]} Rd8 {[%emt 0:02:24]} 24. Rc1 {[%emt 0:04:07]} h5 {[%emt 0:00:25]} 25. Qc4 {[%emt 0:07:39]} Re1+ {[%emt 0:01:07]} 26. Kh2 {[%emt 0:00:10]} Qe5+ {[%emt 0:02:07]} 27. g3 {[%emt 0:01:40]} Rxc1 {[%emt 0:01:10]} 28. Qxc1 {[%emt 0:00:05]} h4 {[%emt 0:00:43]} 29. Qc4 {[%emt 0:03:50]} hxg3+ {[%emt 0:02:27]} 30. fxg3 {[%emt 0:00:07]} d3 {[%emt 0:00:35]} 31. Kg2 {[%emt 0:09:48]} Kg7 {[%emt 0:10:08]} 32. b4 {[%emt 0:45:22]} Rd4 {[%emt 0:01:19]} 33. Qc3 {[%emt 0:00:00]} Kh7 {[%emt 0:02:10]} 34. b5 {[%emt 0:00:00]} Qe4+ {[%emt 0:04:17]} 35. Kh2 {[%emt 0:00:00]} Qe3 {[%emt 0:00:55]} 36. Rg2 {[%emt 0:00:00]} Rd5 {[%emt 0:03:06]} 37. a4 {[%emt 0:00:00]} Rc5 {[%emt 0:02:30]} 38. Qf6 {[%emt 0:00:00]} Rf5 {[%emt 0:00:37]} 39. Qb2 {[%emt 0:00:00]} Rf1 {[%emt 0:01:45]} 40. Qd2 {[%emt 0:00:00]} Qf3 {[%emt 0:00:05]} 41. a5 {[%emt 0:00:00]} Kg8 {[%emt 0:00:41]} 42. b6 {[%emt 0:00:00]} axb6 {[%emt 0:00:06]} 43. axb6 {[%emt 0:00:00]} Rb1 {[%emt 0:00:48]} 44. Qg5 {[%emt 0:01:05]} Qf1 {[%emt 0:02:50]} 45. Qd8+ {[%emt 0:01:47]} Kg7 {[%emt 0:00:14]} 46. Qd4+ {[%emt 0:00:05]} f6 {[%emt 0:00:07]} 47. g4 {[%emt 0:01:40]} Qh1+ {[%emt 0:05:44]} 48. Kg3 {[%emt 0:00:04]} Qe1+ {[%emt 0:00:02]} 49. Rf2 {[%emt 0:02:16]} Qe5+ {[%emt 0:05:52]} 50. Qxe5 {[%emt 0:00:05]} fxe5 {[%emt 0:00:01]} 51. Rd2 {[%emt 0:00:32]} Rb3 {[%emt 0:23:01]} 52. b7 {[%emt 0:00:52]} Kf6 {[%emt 0:00:00]} 53. b8=Q {[%emt 0:02:04]} Rxb8 {[%emt 0:00:00]} 54. Rxd3 {[%emt 0:00:00]} Ke6 {[%emt 0:00:00]} 55. Ra3 {[%emt 0:00:00]} Rb6 {[%emt 0:00:00]} 56. h4 {[%emt 0:00:00]} Kd5 {[%emt 0:00:00]} 57. Ra5+ {[%emt 0:00:02]} Kd6 {[%emt 0:00:00]} 58. Ra3 {[%emt 0:00:26]} Rc6 {[%emt 0:00:00]} 59. Rd3+ {[%emt 0:00:58]} Ke6 {[%emt 0:00:00]} 60. Ra3 {[%emt 0:00:41]} Rb6 {[%emt 0:00:00]} 61. Kf3 {[%emt 0:00:20]} Kf6 {[%emt 0:00:00]} 62. Ra4 {[%emt 0:01:02]} Rb1 {[%emt 0:00:00]} 63. Ra6+ {[%emt 0:00:14]} Kf7 {[%emt 0:00:00]} 64. Ra7+ {[%emt 0:00:25]} Kf8 {[%emt 0:00:00]} 65. Ra8+ {[%emt 0:00:26]} Ke7 {[%emt 0:00:00]} 66. Ra7+ {[%emt 0:00:05]} Ke8 {[%emt 0:00:00]} 67. Ra8+ {[%emt 0:00:12]} 1/2-1/2

[Event "Baku Open 2024"]
[Site "Baku"]
[Date "2024.07.05"]
[Round "7.43"]
[White "Nurgali, Nazerke"]
[Black "Voinikonis, Nikita"]
[Result "1/2-1/2"]
[ECO "A58"]
[WhiteElo "2252"]
[BlackElo "2129"]
[Annotator "TA"]
[PlyCount "98"]
[EventDate "2024.06.29"]
[EventType "swiss"]
[EventCountry "AZE"]
[SourceTitle "playchess.com"]
[Source "ChessBase"]
[SourceQuality "1"]
[TimeControl "5400+30"]

{[%evp 23,98,0,0,-15,0,-14,6,0,37,37,45,0,0,2,6,-56,-54,-55,-56,-55,-56,-117,-107,-105,-105,-129,-129,-135,-120,-150,-122,-135,0,-142,0,-117,-99,-99,-90,-97,-90,-90,0,-78,0,0,0,0,0,0,0,0,0,-7,0,-14,0,-1,0,0,0,0,0,0,0,0,0,0,0,0,0,0,0,0,0,0,0]} 1. d4 {[%emt 0:00:06]} Nf6 {[%emt 0:01:04]} 2. c4 {[%emt 0:00:18]} c5 {[%emt 0:00:24]} 3. d5 {[%emt 0:00:28]} b5 {[%emt 0:00:12]} 4. cxb5 {[%emt 0:00:17]} a6 {[%emt 0:00:08]} 5. bxa6 {[%emt 0:00:18]} g6 {[%emt 0:00:14]} 6. Nc3 {[%emt 0:00:32]} Bg7 {[%emt 0:00:16]} 7. Nf3 {[%emt 0:00:21]} O-O {[%emt 0:00:13]} 8. g3 {[%emt 0:00:15]} d6 {[%emt 0:00:41]} 9. Bg2 {[%emt 0:00:39]} Nbd7 {[%emt 0:00:20][%cal Bb8d7,Bd7b6,Bb6c4,Bc4e5][%mdl 32]} 10. O-O {[%emt 0:01:15]} Nb6 {[%emt 0:01:38]} 11. e4 {[%emt 0:05:20]} Bxa6 {[%emt 0:01:05]} 12. Re1 {[%emt 0:00:12]} Nfd7 {[%emt 0:00:44]} 13. Bf1 {[%emt 0:10:40]} Bxf1 {[%emt 0:05:11]} 14. Rxf1 {[%emt 0:00:32]} Nc4 {[%emt 0:00:24]} 15. Qe2 {[%emt 0:03:50]} Nde5 {[%emt 0:01:21]} 16. Nxe5 {[%emt 0:05:34]} Nxe5 {[%emt 0:00:13]} 17. Bf4 {[%emt 0:07:40]} Qa5 {[%emt 0:00:35]} 18. Rfc1 {[%emt 0:03:31]} Rfb8 {[%emt 0:00:24]} 19. Rab1 {[%emt 0:04:27]} (19. Bxe5 $11 Bxe5 20. Rc2) 19... Qa6 $1 $15 {[%emt 0:04:22]} 20. Qxa6 {[%emt 0:07:53]} Rxa6 {[%emt 0:00:09]} 21. Bxe5 {[%emt 0:00:21]} Bxe5 {[%emt 0:00:10]} 22. b3 {[%emt 0:03:58]} (22. Kg2 $15) 22... Bxc3 $17 {[%emt 0:00:42]} 23. Rxc3 {[%emt 0:00:04]} Rxa2 {[%emt 0:00:08][%mdl 4096] Endgame. KRR-KRR} 24. Re1 {[%emt 0:01:48]} Rb2 {[%emt 0:01:36]} 25. Ree3 {[%emt 0:00:09]} Ra8 {[%emt 0:00:57]} 26. Rf3 {[%emt 0:04:10]} Re2 {[%emt 0:01:05]} 27. Rfe3 {[%emt 0:02:15]} Rb2 {[%emt 0:06:10]} 28. Rf3 $1 {[%emt 0:01:19]} Re2 {[%emt 0:07:48]} 29. Rfe3 $1 {[%emt 0:00:04]} Raa2 {[%emt 0:00:10]} 30. Rxe2 {[%emt 0:00:43]} Rxe2 {[%emt 0:00:06] KR-KR} 31. Rc4 {[%emt 0:00:32]} Rb2 {[%emt 0:00:18]} 32. Rc3 {[%emt 0:00:03]} Re2 {[%emt 0:00:03]} 33. Rc4 {[%emt 0:00:10]} f5 {[%emt 0:14:09]} (33... Re1+ $17 34. Kg2 Rb1) 34. exf5 $11 {[%emt 0:03:04] The position is equal.} gxf5 {[%emt 0:01:03]} 35. b4 {[%emt 0:00:14]} cxb4 {[%emt 0:00:08]} 36. Rxb4 {[%emt 0:00:03]} Rd2 {[%emt 0:00:06]} 37. Rb5 {[%emt 0:00:02]} Kf7 {[%emt 0:00:08]} 38. Kf1 {[%emt 0:01:47]} Kf6 {[%emt 0:00:10]} 39. Ke1 {[%emt 0:02:12]} Rc2 {[%emt 0:03:23]} 40. Rb3 {[%emt 0:02:48]} Rc1+ {[%emt 0:00:51]} 41. Ke2 {[%emt 0:00:20]} Rh1 {[%emt 0:00:11]} 42. h4 {[%emt 0:00:55]} Rc1 {[%emt 0:00:23]} 43. Rd3 {[%emt 0:03:34]} Rc4 {[%emt 0:00:45]} 44. f4 {[%emt 0:00:48]} Rc5 {[%emt 0:02:55]} 45. Ke3 {[%emt 0:00:56]} Ra5 {[%emt 0:00:14]} 46. Kd4 {[%emt 0:01:52]} Ra4+ {[%emt 0:00:18]} 47. Ke3 $1 {[%emt 0:00:04]} Ra5 {[%emt 0:00:07]} 48. Kd4 {[%emt 0:01:17]} Kg6 {[%emt 0:05:10]} 49. Ke3 {[%emt 0:00:40]} Kf6 {[%emt 0:46:08] Weighted Error Value: White=0.09 (flawless) /Black=0.20 (precise) .  Mistake:       	White=2     	Black=1      Inaccurate:     	White=1     	Black=1      OK:         	White=13    	Black=5      Best:        	White=3     	Black=1      Strong:       	White=3     	Black=1} 1/2-1/2

[Event "Baku Open 2024"]
[Site "Baku"]
[Date "2024.07.05"]
[Round "7.44"]
[White "Musayev, Eldar"]
[Black "Kairbekova, Amina"]
[Result "0-1"]
[ECO "E73"]
[WhiteElo "2129"]
[BlackElo "2244"]
[Annotator "RC"]
[PlyCount "116"]
[EventDate "2024.06.29"]
[EventType "swiss"]
[EventCountry "AZE"]
[SourceTitle "playchess.com"]
[Source "ChessBase"]
[SourceQuality "1"]
[TimeControl "5400+30"]

1. c4 {[%emt 0:00:05]} Nf6 {[%emt 0:00:05]} 2. d4 {[%emt 0:01:55]} g6 {[%emt 0:00:06]} 3. Nc3 {[%emt 0:00:31]} Bg7 {[%emt 0:00:06]} 4. e4 {[%emt 0:00:19]} d6 {[%emt 0:00:07]} 5. h4 {[%emt 0:01:08]} O-O {[%emt 0:00:22]} 6. h5 {[%emt 0:01:30]} c5 {[%emt 0:00:19]} 7. d5 {[%emt 0:00:49]} e6 {[%emt 0:00:06]} 8. Be2 {[%emt 0:05:38]} exd5 {[%emt 0:00:09]} 9. exd5 {[%emt 0:00:05]} Re8 {[%emt 0:00:08]} 10. hxg6 {[%emt 0:00:47]} fxg6 {[%emt 0:05:17]} 11. Bg5 {[%emt 0:00:27]} Qb6 {[%emt 0:00:28]} 12. Bxf6 {[%emt 0:14:48]} Bxf6 {[%emt 0:00:06]} 13. Qd2 {[%emt 0:00:03]} Nd7 {[%emt 0:02:36]} 14. Nf3 {[%emt 0:09:42]} Nf8 {[%emt 0:05:48]} 15. O-O {[%emt 0:16:31]} Bg4 {[%emt 0:04:54]} 16. Rae1 {[%emt 0:02:17]} Qd8 {[%emt 0:04:50]} 17. Bd1 {[%emt 0:01:16]} Bxf3 {[%emt 0:10:26]} 18. Bxf3 {[%emt 0:00:09]} Qa5 {[%emt 0:02:50]} 19. Ne4 {[%emt 0:08:35]} Qxd2 {[%emt 0:00:10]} 20. Nxd2 {[%emt 0:00:01]} h5 {[%emt 0:07:13]} 21. Ne4 {[%emt 0:02:01]} Be5 {[%emt 0:00:06]} 22. b3 {[%emt 0:06:19]} Re7 {[%emt 0:00:35]} 23. Re2 {[%emt 0:02:57]} Nh7 {[%emt 0:01:44]} 24. Rfe1 {[%emt 0:00:19]} Rae8 {[%emt 0:01:30]} 25. g3 {[%emt 0:02:34]} b6 {[%emt 0:01:07]} 26. Kg2 {[%emt 0:06:42]} Kg7 {[%emt 0:00:53]} 27. Re3 {[%emt 0:01:35]} Nf6 {[%emt 0:04:27]} 28. Ng5 {[%emt 0:00:26]} Kh6 {[%emt 0:00:11]} 29. Ne6 {[%emt 0:00:20]} g5 {[%emt 0:02:48]} 30. Rh1 {[%emt 0:01:44]} g4 {[%emt 0:05:07]} 31. Bd1 {[%emt 0:00:06]} Rg8 {[%emt 0:05:19]} 32. Ree1 {[%emt 0:03:17]} Rf7 {[%emt 0:01:33]} 33. Rh4 {[%emt 0:00:32]} b5 {[%emt 0:08:30]} 34. cxb5 {[%emt 0:02:02]} Nxd5 {[%emt 0:01:56]} 35. Nxc5 {[%emt 0:00:24]} Bf6 {[%emt 0:02:04]} 36. Nd3 {[%emt 0:06:37]} Bxh4 {[%emt 0:00:13]} 37. gxh4 {[%emt 0:00:01]} Rf6 {[%emt 0:01:57]} 38. a4 {[%emt 0:00:52]} Rgf8 {[%emt 0:00:30]} 39. Re4 {[%emt 0:01:20]} Nc3 {[%emt 0:04:07]} 40. Re1 {[%emt 0:00:05]} Nxd1 {[%emt 0:00:04]} 41. Rxd1 {[%emt 0:00:02]} Rf5 {[%emt 0:00:06]} 42. Re1 {[%emt 0:01:13]} R8f6 {[%emt 0:00:54]} 43. Re2 {[%emt 0:00:18]} Rf3 {[%emt 0:01:36]} 44. Rd2 {[%emt 0:00:06]} Kg7 {[%emt 0:01:36]} 45. b4 {[%emt 0:00:27]} R6f5 {[%emt 0:00:06]} 46. Nb2 {[%emt 0:02:31]} R3f4 {[%emt 0:00:28]} 47. Nd1 {[%emt 0:01:15]} Rxb4 {[%emt 0:00:36]} 48. Ne3 {[%emt 0:00:07]} Rf7 {[%emt 0:00:28]} 49. Rd5 {[%emt 0:00:29]} Rb2 {[%emt 0:00:52]} 50. Rg5+ {[%emt 0:00:19]} Kf8 {[%emt 0:00:17]} 51. Nf5 {[%emt 0:00:12]} Rh7 {[%emt 0:01:30]} 52. Nxd6 {[%emt 0:00:22]} Ke7 {[%emt 0:02:07]} 53. Rg6 {[%emt 0:01:11]} Ra2 {[%emt 0:00:31]} 54. Nc8+ {[%emt 0:00:59]} Kd8 {[%emt 0:00:09]} 55. Rg8+ {[%emt 0:00:55]} Kc7 {[%emt 0:00:04]} 56. Nxa7 {[%emt 0:00:05]} Rf7 {[%emt 0:00:04]} 57. a5 {[%emt 0:00:28]} Rfxf2+ {[%emt 0:00:52]} 58. Kg3 {[%emt 0:00:08]} Rf3# {[%emt 0:00:05]} 0-1